Workbook

Sheet Blank
A1: Appt | B1: RENT DUE | C1: ELEC - | D1: 1st | E1: Payment | F1: 2nd | G1: Payment | H1: CA/CC | I1: Payment
A2: 1
A3: 2
A4: 3
A5: 4
A6: 5
A7: 6
A8: 7
A9: 8
A10: 9
A11: 10A
A12: 10B
A13: 11
A14: 12
A15: 13
A16: 14A
A17: 14B
A18: 15
A19: 16
A20: 17
A21: 18
A22: 19
A23: 20A
A24: 20B
A25: 21
A26: 22/23
A27: 24
A28: 25
A29: 26
B30: =SUM(B2:B29) -> 0 | C30: =SUM(C2:C7) -> 0 | D30: Date | E30: =SUM(E2:E29) -> 0 | F30: Date | G30: =SUM(G2:G29) -> 0 | H30: Date | I30: =SUM(I2:I29) -> 0
A31: Front page pluse totals | H31: =E30+G30+I30 -> 0

Sheet Jan
A1: Appt | B1: RENT DUE | C1: ELEC - | D1: 1st | E1: Payment | F1: 2nd | G1: Payment | H1: CA/CC | I1: Payment
A2: 1 | B2: 625 | D2: bank | E2: 625
A3: 2 | B3: 625 | D3: ca | E3: 625
A4: 3 | B4: 625 | D4: ca | E4: 435 | F4: 2026-01-02 | G4: 260
A5: 4
A6: 5
A7: 6 | B7: 625 | D7: 2026-01-07 | E7: 200 | F7: 2026-01-02 | G7: 200 | H7: 2026-01-21 | I7: 600
A8: 7
A9: 8 | B9: 625 | D9: SQ | E9: 1402
A10: 9 | B10: 625 | D10: 2026-01-02 | E10: 625
A11: 10A | B11: 625 | D11: 2026-01-02 | E11: 625
A12: 10B | B12: 425 | D12: 2026-01-02 | E12: 450 | F12: SB | G12: 100
A13: 11 | B13: 425
A14: 12 | B14: 625 | D14: 2026-01-21 | E14: 225 | F14: 2026-01-23 | G14: 100 | H14: 2026-01-27 | I14: 285
A15: 13
A16: 14A | B16: 625 | D16: 2026-01-07 | E16: 625
A17: 14B | B17: 425 | D17: ca | E17: 850
A18: 16
A19: 17
A20: 18
A21: 19 | B21: 625 | D21: 2026-01-02 | E21: 625
A22: 20B | B22: 425
A23: 22/23 | B23: 950 | D23: 2026-01-06 | E23: 950
A24: 24
A25: 25
A26: 26 | B26: 625 | D26: 2026-01-06 | E26: 625
A27: JAN | B27: =SUM(B2:B26) -> 9525 | C27: =SUM(C2:C7) -> 0 | D27: Date | E27: =SUM(E2:E26) -> 8887 | F27: Date | G27: =SUM(G2:G26) -> 660 | H27: Date | I27: =SUM(I2:I26) -> 885
A28: Front page pluse totals | H28: =E27+G27+I27 -> 10432

Sheet Feb
A1: Appt | B1: RENT DUE | C1: ELEC - | D1: 1st | E1: Payment | F1: 2nd | G1: Payment | H1: CA/CC | I1: Payment
A2: 1 | B2: =[1]Jan!B2 -> 625 | D2: sq | E2: 625
A3: 2 | B3: =[1]Jan!B3 -> 625 | D3: sq | E3: 625
A4: 3 | B4: =[1]Jan!B4 -> 625 | D4: sq | E4: 525
A5: 4 | B5: 625 | D5: CA | E5: 825
A6: 5 | B6: 625 | D6: CA | E6: 950
A7: 6 | B7: =[1]Jan!B7 -> 625 | D7: 4 | E7: 200 | F7: 11 | G7: 200 | H7: 18 & 25 | I7: 400
A8: 7 | B8: =[1]Jan!B8 -> 0
A9: 8 | B9: =[1]Jan!B9 -> 625 | D9: 24 | E9: 100
A10: 9 | B10: =[1]Jan!B10 -> 625
A11: 10A | B11: =[1]Jan!B11 -> 625 | D11: 5 | E11: 625
A12: 10B | B12: =[1]Jan!B12 -> 425 | D12: 4 | E12: 425
A13: 11 | B13: =[1]Jan!B13 -> 425 | D13: Help | E13: 425 | F13: help | G13: 425
A14: 12 | B14: =[1]Jan!B14 -> 625 | D14: 6 | E14: 320 | F14: ca | G14: 144 | I14: 171
A15: 13 | B15: 625 | D15: sq | E15: 1050
A16: 14A | B16: =[1]Jan!B16 -> 625 | D16: Ca | E16: 625
A17: 14B | B17: =[1]Jan!B17 -> 425 | D17: ca | E17: 425
A18: 16 | B18: 625 | D18: sq | E18: 1050
A19: 17 | B19: =[1]Jan!B20 -> 0
A20: 18 | B20: =[1]Jan!B21 -> 0
A21: 19 | B21: =[1]Jan!B22 -> 625 | D21: 3 | E21: 675
A22: 20B | B22: =[1]Jan!B24 -> 425
A23: 22/23 | B23: =[1]Jan!B26 -> 950 | D23: sq | E23: 950
A24: 24 | B24: =[1]Jan!B27 -> 0
A25: 25 | B25: =[1]Jan!B28 -> 0
A26: 26 | B26: =[1]Jan!B29 -> 625 | D26: sq | E26: 625
A27: FEB | B27: =SUM(B2:B26) -> 12025 | C27: =SUM(C2:C7) -> 0 | D27: Date | E27: =SUM(E2:E26) -> 11045 | F27: Date | G27: =SUM(G2:G26) -> 769 | H27: Date | I27: =SUM(I2:I26) -> 571
A28: Front page pluse totals | H28: =E27+G27+I27 -> 12385

Sheet March
A1: Appt | B1: RENT DUE | C1: ELEC - | D1: 1st | E1: Payment | F1: 2nd | G1: Payment | H1: 3rd | I1: Payment | J1: 4th | K1: Payment
A2: 1 | B2: =[1]Jan!B2 -> 625 | C2: 9.33 | D2: SQ | E2: 625
A3: 2 | B3: =[1]Jan!B3 -> 625 | C3: 50.55 | D3: SQ | E3: 625 | F3: SQ | G3: 50.55
A4: 3 | B4: =[1]Jan!B4 -> 625 | D4: CA | E4: 525 | G4: 200
A5: 4 | B5: 134 | D5: CA | E5: 359
A6: 5 | B6: 134 | E6: 0
A7: 6 | B7: =[1]Jan!B7 -> 625 | C7: 7.66 | D7: 4th | E7: 200 | F7: 1900-01-11 | G7: 200 | H7: 1900-01-18 | I7: 200 | J7: 25th | K7: 200
A8: 7
A9: 8 | B9: =[1]Jan!B9 -> 625 | E9: 300
A10: 9 | B10: =[1]Jan!B10 -> 625 | D10: 3rd | E10: 625 | F10: 5th | G10: 640
A11: 10A | B11: 589.28 | D11: 27th | E11: 850 | F11: 10th | G11: 364.28
A12: 10B | B12: =[1]Jan!B12 -> 425 | D12: 3rd | E12: 430
A13: 11 | B13: 425
A14: 12 | B14: =[1]Jan!B14 -> 625 | D14: CA | E14: 100 | F14: ca | G14: 200 | H14: 1900-01-27 | I14: 330
A15: 13 | B15: 513.39 | D15: SQ | E15: 513.32
A16: 14A | B16: =[1]Jan!B16 -> 625 | D16: ca | E16: 625
A17: 14B | B17: =[1]Jan!B17 -> 425 | D17: ca | E17: 450
A18: 16 | B18: 513.39 | D18: SQ | E18: 513.39
A19: 17 | B19: =[1]Jan!B20 -> 0
A20: 18 | B20: =[1]Jan!B21 -> 0
A21: 19 | B21: =[1]Jan!B22 -> 625 | D21: 3rd | E21: 625
A22: 20B | B22: 0
A23: 22/23 | B23: =[1]Jan!B26 -> 950 | E23: 950
A24: 24 | B24: =[1]Jan!B27 -> 0
A25: 25 | B25: =[1]Jan!B28 -> 0
A26: 26 | B26: =[1]Jan!B29 -> 625 | D26: SQ | E26: 625
A27: March | B27: =SUM(B2:B26) -> 10359.06 | C27: =SUM(C2:C7) -> 67.54 | D27: Date | E27: =SUM(E2:E26) -> 8940.71 | F27: Date | G27: =SUM(G2:G26) -> 1654.83 | H27: Date | I27: =SUM(I2:I26) -> 530 | J27: Date | K27: =SUM(K2:K26) -> 200
A28: Front page pluse totals | H28: =E27+G27+I27+K27 -> 11325.54

Sheet April
A1: Appt | B1: RENT DUE | C1: ELEC - | D1: 1st | E1: Payment | F1: 2nd | G1: Payment | H1: 3rd | I1: Payment
A2: 1 | B2: =[1]Jan!B2 -> 625 | D2: sq | E2: 625
A3: 2 | B3: =[1]Jan!B3 -> 625 | D3: sq | E3: 625
A4: 3 | B4: =[1]Jan!B4 -> 625 | D4: ca | E4: 425
A5: 4 | B5: 625 | D5: ca | E5: 625
A6: 5 | B6: 625 | D6: sq | E6: 625
A7: 6 | B7: =[1]Jan!B7 -> 625 | D7: 8th | E7: 200 | F7: 15th | G7: 200 | H7: 29th | I7: 200
A8: 7
A9: 8
A10: 9 | B10: =[1]Jan!B10 -> 625 | D10: 4th | E10: 610 | F10: WB
A11: 10A | B11: 625 | D11: sq | E11: 625
A12: 10B | B12: =[1]Jan!B12 -> 425 | D12: 2nd | E12: 425 | F12: WB
A13: 11
A14: 12 | B14: =[1]Jan!B14 -> 625 | D14: ca | E14: 158 | G14: 200 | I14: 282
A15: 13 | B15: 625 | D15: sq | E15: 625.07
A16: 14A | B16: =[1]Jan!B16 -> 625 | D16: CA | E16: 625 | F16: 8th | G16: 625
A17: 14B | B17: =[1]Jan!B17 -> 425
A18: 16 | B18: 625 | D18: sq | E18: 625
A19: 17
A20: 18
A21: 19 | B21: =[1]Jan!B22 -> 625 | D21: 3rd | E21: 625 | F21: WB
A22: 20B
A23: 22/23 | B23: =[1]Jan!B26 -> 950 | D23: sq | E23: 950
A24: 24
A25: 25
A26: 26 | B26: =[1]Jan!B29 -> 625 | D26: sq | E26: 625
A27: APL | B27: =SUM(B2:B26) -> 10550 | C27: =SUM(C2:C26) -> 0 | D27: Date | E27: =SUM(E2:E26) -> 9018.07 | F27: Date | G27: =SUM(G2:G26) -> 1025 | H27: Date | I27: =SUM(I2:I26) -> 482
A28: Front page pluse totals | H28: =E27+G27+I27 -> 10525.07

Sheet May
A1: Appt | B1: RENT DUE | C1: ELEC - | D1: 1st | E1: Payment | F1: 2nd | G1: Payment | H1: CA/CC | I1: Payment
A2: 1
A3: 2
A4: 3
A5: 4
A6: 5
A7: 6
A8: 7
A9: 8
A10: 9
A11: 10A
A12: 10B
A13: 11
A14: 12
A15: 13
A16: 14A
A17: 14B
A18: 16
A19: 17
A20: 18
A21: 19
A22: 20B
A23: 22/23
A24: 24
A25: 25
A26: 26
A27: May | B27: =SUM(B2:B26) -> 0 | C27: =SUM(C2:C7) -> 0 | D27: Date | E27: =SUM(E2:E26) -> 0 | F27: Date | G27: =SUM(G2:G26) -> 0 | H27: Date | I27: =SUM(I2:I26) -> 0
A28: Front page pluse totals | H28: =E27+G27+I27 -> 0

Sheet June
A1: Appt | B1: RENT DUE | C1: ELEC - | D1: 1st | E1: Payment | F1: 2nd | G1: Payment | H1: CA/CC | I1: Payment
A2: 1
A3: 2
A4: 3
A5: 4
A6: 5
A7: 6
A8: 7
A9: 8
A10: 9
A11: 10A
A12: 10B
A13: 11
A14: 12
A15: 13
A16: 14A
A17: 14B
A18: 16
A19: 17
A20: 18
A21: 19
A22: 20B
A23: 22/23
A24: 24
A25: 25
A26: 26
A27: June | B27: =SUM(B2:B26) -> 0 | C27: =SUM(C2:C7) -> 0 | D27: Date | E27: =SUM(E2:E26) -> 0 | F27: Date | G27: =SUM(G2:G26) -> 0 | H27: Date | I27: =SUM(I2:I26) -> 0
A28: Front page pluse totals | H28: =E27+G27+I27 -> 0

Sheet July
A1: Appt | B1: RENT DUE | C1: ELEC - | D1: 1st | E1: Payment | F1: 2nd | G1: Payment | H1: CA/CC | I1: Payment
A2: 1
A3: 2
A4: 3
A5: 4
A6: 5
A7: 6
A8: 7
A9: 8
A10: 9
A11: 10A
A12: 10B
A13: 11
A14: 12
A15: 13
A16: 14A
A17: 14B
A18: 16
A19: 17
A20: 18
A21: 19
A22: 20B
A23: 22/23
A24: 24
A25: 25
A26: 26
A27: July | B27: =SUM(B2:B26) -> 0 | C27: =SUM(C2:C7) -> 0 | D27: Date | E27: =SUM(E2:E26) -> 0 | F27: Date | G27: =SUM(G2:G26) -> 0 | H27: Date | I27: =SUM(I2:I26) -> 0
A28: Front page pluse totals | H28: =E27+G27+I27 -> 0

Sheet Aug
A1: Appt | B1: RENT DUE | C1: ELEC - | D1: 1st | E1: Payment | F1: 2nd | G1: Payment | H1: CA/CC | I1: Payment
A2: 1
A3: 2
A4: 3
A5: 4
A6: 5
A7: 6
A8: 7
A9: 8
A10: 9
A11: 10A
A12: 10B
A13: 11
A14: 12
A15: 13
A16: 14A
A17: 14B
A18: 16
A19: 17
A20: 18
A21: 19
A22: 20B
A23: 22/23
A24: 24
A25: 25
A26: 26
A27: AUG | B27: =SUM(B2:B26) -> 0 | C27: =SUM(C2:C7) -> 0 | D27: Date | E27: =SUM(E2:E26) -> 0 | F27: Date | G27: =SUM(G2:G26) -> 0 | H27: Date | I27: =SUM(I2:I26) -> 0
A28: Front page pluse totals | H28: =E27+G27+I27 -> 0

Sheet Sep
A1: Appt | B1: RENT DUE | C1: ELEC - | D1: 1st | E1: Payment | F1: 2nd | G1: Payment | H1: CA/CC | I1: Payment
A2: 1
A3: 2
A4: 3
A5: 4
A6: 5
A7: 6
A8: 7
A9: 8
A10: 9
A11: 10A
A12: 10B
A13: 11
A14: 12
A15: 13
A16: 14A
A17: 14B
A18: 16
A19: 17
A20: 18
A21: 19
A22: 20B
A23: 22/23
A24: 24
A25: 25
A26: 26
A27: SEP | B27: =SUM(B2:B26) -> 0 | C27: =SUM(C2:C7) -> 0 | D27: Date | E27: =SUM(E2:E26) -> 0 | F27: Date | G27: =SUM(G2:G26) -> 0 | H27: Date | I27: =SUM(I2:I26) -> 0
A28: Front page pluse totals | H28: =E27+G27+I27 -> 0

Sheet Oct
A1: Appt | B1: RENT DUE | C1: ELEC - | D1: 1st | E1: Payment | F1: 2nd | G1: Payment | H1: CA/CC | I1: Payment
A2: 1
A3: 2
A4: 3
A5: 4
A6: 5
A7: 6
A8: 7
A9: 8
A10: 9
A11: 10A
A12: 10B
A13: 11
A14: 12
A15: 13
A16: 14A
A17: 14B
A18: 16
A19: 17
A20: 18
A21: 19
A22: 20B
A23: 22/23
A24: 24
A25: 25
A26: 26
A27: Oct | B27: =SUM(B2:B26) -> 0 | C27: =SUM(C2:C7) -> 0 | D27: Date | E27: =SUM(E2:E26) -> 0 | F27: Date | G27: =SUM(G2:G26) -> 0 | H27: Date | I27: =SUM(I2:I26) -> 0
A28: Front page pluse totals | H28: =E27+G27+I27 -> 0

Sheet Nov
A1: Appt | B1: RENT DUE | C1: ELEC - | D1: 1st | E1: Payment | F1: 2nd | G1: Payment | H1: CA/CC | I1: Payment
A2: 1
A3: 2
A4: 3
A5: 4
A6: 5
A7: 6
A8: 7
A9: 8
A10: 9
A11: 10A
A12: 10B
A13: 11
A14: 12
A15: 13
A16: 14A
A17: 14B
A18: 16
A19: 17
A20: 18
A21: 19
A22: 20B
A23: 22/23
A24: 24
A25: 25
A26: 26
A27: Nov | B27: =SUM(B2:B26) -> 0 | C27: =SUM(C2:C7) -> 0 | D27: Date | E27: =SUM(E2:E26) -> 0 | F27: Date | G27: =SUM(G2:G26) -> 0 | H27: Date | I27: =SUM(I2:I26) -> 0
A28: Front page pluse totals | H28: =E27+G27+I27 -> 0

Sheet Dec
A1: Appt | B1: RENT DUE | C1: ELEC - | D1: 1st | E1: Payment | F1: 2nd | G1: Payment | H1: CA/CC | I1: Payment
A2: 1
A3: 2
A4: 3
A5: 4
A6: 5
A7: 6
A8: 7
A9: 8
A10: 9
A11: 10A
A12: 10B
A13: 11
A14: 12
A15: 13
A16: 14A
A17: 14B
A18: 16
A19: 17
A20: 18
A21: 19
A22: 20B
A23: 22/23
A24: 24
A25: 25
A26: 26
A27: Dec | B27: =SUM(B2:B26) -> 0 | C27: =SUM(C2:C7) -> 0 | D27: Date | E27: =SUM(E2:E26) -> 0 | F27: Date | G27: =SUM(G2:G26) -> 0 | H27: Date | I27: =SUM(I2:I26) -> 0
A28: Front page pluse totals | H28: =E27+G27+I27 -> 0
